fUSD/lending_fUSD_20240412
["ID","MTS","AMOUNT","RATE_DAILY","PERIOD"]
[322283860,1712932282940,-500.0,0.00049589,120]
[322283861,1712932282950,-500.0,0.00049589,120]
[322283862,1712932282960,-612.92,0.00049589,120]
[322283863,1712932282969,-754.08,0.00049589,120]
[322283864,1712932282979,-1797.61,0.00049589,120]
[322283865,1712932282989,-1032.73,0.00049589,120]
[322283866,1712932282998,-500.0,0.00049589,120]
[322283867,1712932283009,-500.0,0.00049589,120]
[322283868,1712932283020,-1825.35,0.00049589,120]
[322283869,1712932283030,-500.0,0.00049589,120]
[322283870,1712932283041,-1023.55,0.00049589,120]
[322283871,1712932283051,-482.66,0.00049589,120]
[322283872,1712932283062,-500.0,0.00049589,120]
[322283873,1712932283071,-1826.11,0.00049589,120]
[322283874,1712932283081,-1939.06,0.00049589,120]
[322283875,1712932283091,-1072.93,0.00049589,120]
[322283876,1712932283101,-638.32,0.00049589,120]
[322283877,1712932283111,-500.0,0.00049589,120]
[322283878,1712932283121,-604.62,0.00049589,120]
[322283879,1712932283132,-6523.12,0.00049589,120]
[322283880,1712932283142,-578.92,0.00049589,120]
[322283881,1712932283153,-1044.53,0.00049589,120]
[322283882,1712932283162,-500.0,0.00049589,120]
[322283883,1712932283173,-871.26,0.00049589,120]
[322283884,1712932283183,-500.0,0.00049589,120]
[322283885,1712932283193,-851.38,0.00049589,120]
[322283886,1712932283204,-992.77,0.00049589,120]
[322283887,1712932283214,-767.12,0.00049589,120]
[322283888,1712932283224,-1944.43,0.00049589,120]
[322283889,1712932283233,-500.0,0.00049589,120]
[322283890,1712932283243,-808.31,0.00049589,120]
[322283891,1712932283253,-500.0,0.00049589,120]
[322283892,1712932283263,-513.62,0.00049589,120]
[322283893,1712932283273,-500.0,0.00049589,120]
[322283894,1712932283283,-830.2,0.00049589,120]
[322283895,1712932283292,-500.0,0.00049589,120]
[322283896,1712932283301,-609.6,0.00049589,120]
[322283897,1712932283311,-453.43370357,0.00049589,120]
[322283898,1712932283321,-500.0,0.00049589,120]
[322283899,1712932283331,-1025.86,0.00049589,120]
[322283900,1712932283340,-500.0,0.00049589,120]
[322283901,1712932283350,-1870.81,0.00049589,120]
[322283902,1712932283360,-655.87,0.00049589,120]
[322283903,1712932283520,-887.38,0.00049589,120]
[322283904,1712932283531,-4707.9,0.00049589,120]
[322283905,1712932283541,-203.53,0.00049595,2]
[322283906,1712932283552,-190.4144228,0.0004968,120]
[322283907,1712932283561,-300.0,0.000497,7]
[322283908,1712932283572,-3000.0,0.00049726,120]
[322283909,1712932283581,-20000.0,0.0004976,18]
[322283910,1712932283591,-4354.1848397,0.00049766,2]
[322283911,1712932283600,-102214.9652007,0.00049766,2]
[322283912,1712932283609,-12553.2824588,0.00049766,2]
[322283913,1712932283619,-519000.59408264,0.000498,30]
[322283914,1712932283631,-2787488.6218134,0.000498,30]
[322283915,1712932283831,-1779016.60522486,0.000498,30]
[322283916,1712932284197,-405.02272701,0.00020528,2]
[322283917,1712932284207,-164.23328005,0.00020528,2]
[322283918,1712932284216,-500.0,0.00020687,2]
[322283919,1712932284225,-500.0,0.00020687,2]
[322283920,1712932284234,-500.0,0.00020687,2]
[322283921,1712932284245,-500.0,0.00020687,2]
[322283922,1712932284253,-500.0,0.00020687,2]
[322283923,1712932284262,-601.27604152,0.00020687,2]
[322283924,1712932284272,-500.0,0.00020687,2]
[322283925,1712932284282,-549.50166831,0.00020687,2]
[322283926,1712932284291,-500.0,0.00020687,2]
[322283927,1712932284301,-113.18686263,0.00020687,2]
[322283928,1712932284316,-386.81313737,0.00020687,2]
[322283929,1712932284326,-500.0,0.00020687,2]
[322283930,1712932284335,-500.0,0.00020687,2]
[322283931,1712932284345,-150.0,0.00021109,2]
[322283932,1712932284356,-1251.95220192,0.00021355,2]
[322283933,1712932284367,-220.599296,0.00027123,2]
[322283934,1712932284378,-150.16,0.00029,2]
[322283935,1712932284388,-150.16,0.00029,2]
[322283936,1712932284402,-150.16,0.00029,2]
[322283937,1712932284411,-150.16,0.00029,2]
[322283938,1712932284421,-150.16,0.00029,2]
[322283939,1712932284431,-150.16,0.00029,2]
[322283940,1712932284440,-150.16,0.00029,2]
[322283941,1712932284449,-150.16,0.00029,2]
[322283942,1712932284458,-470.40475499,0.00047123,31]
[322283943,1712932284471,-29.59524501,0.00047123,31]
[322283944,1712932284481,-186.8698055,0.00047397,31]
[322283945,1712932284491,-500.0,0.00047397,31]
[322283946,1712932284500,-402.05407907,0.00047671,31]
[322283947,1712932284524,-332.02,0.00020685,2]
[322283948,1712932284959,-4324.64565833,0.00020528,2]
[322283949,1712932284969,-173.36498314,0.00020685,2]
[322283950,1712932284978,-216.64242715,0.00020685,2]
[322283951,1712932284988,-157.21892996,0.00020685,2]
[322283952,1712932284997,-174.65240958,0.00020696,2]
[322283953,1712932285009,-204.07004553,0.00020696,2]
[322283954,1712932285019,-220.599296,0.00027945,14]
[322283955,1712932285029,-150.16,0.00029,2]
[322283956,1712932285039,-150.16,0.00029,2]
[322283957,1712932285049,-150.16,0.00029,2]
[322283958,1712932285059,-150.16,0.00029,2]
[322283959,1712932285068,-150.16,0.00029,2]
[322283960,1712932285078,-150.16,0.00029,2]
[322283961,1712932285087,-150.16,0.00029,2]
[322283962,1712932285096,-150.16,0.00029,2]
[322283963,1712932285105,-38.24221694,0.00029,2]
[322283964,1712932285117,-111.91778306,0.00029,2]
[322283965,1712932285126,-150.16,0.00029,2]
[322283966,1712932285135,-150.16,0.00029,2]
[322283967,1712932285144,-150.16,0.00029,2]
[322283968,1712932285153,-150.16,0.00029,2]
[322283969,1712932285162,-150.16,0.00029,2]
[322283970,1712932285171,-150.16,0.00029,2]
[322283971,1712932285180,-150.16,0.00029,2]
[322283972,1712932285189,-150.16,0.00029,2]
[322283973,1712932285199,-313.12334578,0.00030943,2]
[322283974,1712932285209,-97.94592093,0.00047671,31]
[322283975,1712932285218,-500.0,0.00047671,31]
[322283976,1712932285228,-620.49,0.00047945,31]
[322283977,1712932285238,-330.40631515,0.00047945,31]
[322283978,1712932285248,-500.0,0.00047945,31]
[322283979,1712932285258,-620.49,0.00048219,31]
[322283980,1712932285268,-641.27781528,0.00048219,31]
[322283981,1712932285277,-620.49,0.00048493,31]
[322283982,1712932285287,-620.49,0.00048767,31]
[322283983,1712932285296,-620.49,0.00049041,31]
[322283984,1712932285306,-620.49,0.00049315,120]
[322283985,1712932285315,-620.49,0.00049589,120]
[322283986,1712932285325,-5735.53137868,0.000498,30]
[322283987,1712932285335,-226.75555556,0.00049808,120]
[322283988,1712932285344,-1824.11642155,0.00049829,117]
[322283989,1712932285358,-1210.78357845,0.00049829,117]
[322283990,1712932285367,-212.74179419,0.00049863,120]
[322283991,1712932285378,-500.0,0.00049863,120]
[322283992,1712932285387,-500.0,0.00049863,120]
[322283993,1712932285401,-500.0,0.00049863,120]
[322283994,1712932285411,-500.0,0.00049863,120]
[322283995,1712932285420,-530.68,0.00049863,120]
[322283996,1712932285430,-690.46,0.00049863,2]
[322283997,1712932285441,-500.0,0.00049863,120]
[322283998,1712932285451,-586.07,0.00049863,120]
[322283999,1712932285460,-500.0,0.00049863,120]
[322284000,1712932285471,-548.32,0.00049863,120]
[322284001,1712932285480,-500.0,0.00049863,120]
[322284002,1712932285489,-500.0,0.00049863,120]
[322284003,1712932285498,-511.49234615,0.00049863,120]
[322284004,1712932285507,-500.0,0.00049863,120]
[322284005,1712932285517,-500.0,0.00049863,120]
[322284006,1712932285526,-517.24,0.00049863,120]
[322284007,1712932285536,-247.72196204,0.00049863,120]
[322284008,1712932285545,-500.0,0.00049863,120]
[322284009,1712932285554,-500.0,0.00049863,120]
[322284010,1712932285564,-500.0,0.00049863,120]
[322284011,1712932285573,-500.0,0.00049863,120]
[322284012,1712932285581,-500.0,0.00049863,120]
[322284013,1712932285591,-500.0,0.00049863,120]
[322284014,1712932285600,-612.26,0.00049863,120]
[322284015,1712932285609,-491.20113633,0.00049863,120]
[322284016,1712932285618,-500.0,0.00049863,120]
[322284017,1712932285628,-621.43,0.00049863,2]
[322284018,1712932285638,-500.0,0.00049863,120]
[322284019,1712932285648,-500.0,0.00049863,120]
[322284020,1712932285658,-277.58933866,0.00049863,120]
[322284021,1712932285668,-691.34,0.00049863,120]
[322284022,1712932285679,-3000.0,0.00049863,120]
[322284023,1712932285689,-538.28,0.00049863,120]
[322284024,1712932285697,-500.0,0.00049863,120]
[322284025,1712932285707,-500.0,0.00049863,120]
[322284026,1712932285717,-500.0,0.00049863,120]
[322284027,1712932285727,-702.45,0.00049863,120]
[322284028,1712932285737,-500.0,0.00049863,120]
[322284029,1712932285746,-505.82,0.00049863,120]
[322284030,1712932285756,-500.0,0.00049863,120]
[322284031,1712932285766,-500.0,0.00049863,120]
[322284032,1712932285778,-592.61658156,0.00049863,120]
[322284033,1712932285788,-747.37,0.00049863,120]
[322284034,1712932285798,-662.01,0.00049863,120]
[322284035,1712932285807,-500.0,0.00049863,120]
[322284036,1712932285817,-500.0,0.00049863,120]
[322284037,1712932285827,-500.0,0.00049863,120]
[322284038,1712932285837,-500.0,0.00049863,120]
[322284039,1712932285846,-1486.72,0.00049863,120]
[322284040,1712932285855,-5097.44,0.00049863,120]
[322284041,1712932285865,-173.47660417,0.00049863,120]
[322284042,1712932285874,-500.0,0.00049863,120]
[322284043,1712932285886,-500.0,0.00049863,120]
[322284044,1712932285895,-500.0,0.00049863,120]
[322284045,1712932285903,-500.0,0.00049863,120]
[322284046,1712932285913,-604.82,0.00049863,120]
[322284047,1712932285922,-1074.08,0.00049863,120]
[322284048,1712932285932,-500.0,0.00049863,120]
[322284049,1712932285941,-500.0,0.00049863,120]
[322284050,1712932285951,-500.0,0.00049863,120]
[322284051,1712932285960,-508.21,0.00049863,120]
[322284052,1712932285970,-3098.58,0.00049863,120]
[322284053,1712932285980,-5402.79,0.00049863,120]
[322284054,1712932285989,-500.0,0.00049863,120]
[322284055,1712932285999,-500.0,0.00049863,120]
[322284056,1712932286008,-352.81341715,0.00049863,120]
[322284057,1712932286017,-755.08,0.00049863,120]
[322284058,1712932286027,-521.78,0.00049863,120]
[322284059,1712932286037,-1277.67,0.00049863,120]
[322284060,1712932286047,-500.0,0.00049863,120]
[322284061,1712932286056,-583.7,0.00049863,120]
[322284062,1712932286066,-672.51,0.00049863,120]
[322284063,1712932286075,-897.14,0.00049863,120]
[322284064,1712932286085,-500.0,0.00049863,120]
[322284065,1712932286095,-500.0,0.00049863,120]
[322284066,1712932286104,-690.24,0.00049863,120]
[322284067,1712932286113,-500.0,0.00049863,21]
[322284068,1712932286122,-2797.23,0.00049863,120]
[322284069,1712932286131,-665.47,0.00049863,120]
[322284070,1712932286141,-500.0,0.00049863,120]
[322284071,1712932286150,-555.77272944,0.00049863,120]
[322284072,1712932286159,-500.0,0.00049863,120]
[322284073,1712932286169,-1459.05,0.00049863,120]
[322284074,1712932286178,-1230.89,0.00049863,120]
[322284075,1712932286188,-500.0,0.00049863,120]
[322284076,1712932286198,-2213.61,0.00049863,120]
[322284077,1712932286208,-500.0,0.00049863,120]
[322284078,1712932286219,-500.0,0.00049863,120]
[322284079,1712932286228,-612.92,0.00049863,120]
[322284080,1712932286238,-754.08,0.00049863,120]
[322284081,1712932286247,-1797.61,0.00049863,120]
[322284082,1712932286257,-1032.73,0.00049863,120]
[322284083,1712932286267,-500.0,0.00049863,120]
[322284084,1712932286276,-500.0,0.00049863,120]
[322284085,1712932286286,-1825.35,0.00049863,120]
[322284086,1712932286296,-500.0,0.00049863,120]
[322284087,1712932286305,-1023.55,0.00049863,120]
[322284088,1712932286315,-500.0,0.00049863,120]
[322284089,1712932286324,-1826.11,0.00049863,120]
[322284090,1712932286334,-1939.06,0.00049863,120]
[322284091,1712932286344,-1072.93,0.00049863,120]
[322284092,1712932286353,-638.32,0.00049863,120]
[322284093,1712932286363,-500.0,0.00049863,120]
[322284094,1712932286374,-604.62,0.00049863,120]
[322284095,1712932286384,-6523.12,0.00049863,120]
[322284096,1712932286399,-578.92,0.00049863,120]
[322284097,1712932286410,-1044.53,0.00049863,120]
[322284098,1712932286421,-500.0,0.00049863,120]
[322284099,1712932286432,-871.26,0.00049863,120]
[322284100,1712932286442,-487.16004192,0.00049863,120]
[322284101,1712932286451,-851.38,0.00049863,120]
[322284102,1712932286461,-992.77,0.00049863,120]
[322284103,1712932286473,-767.12,0.00049863,120]
[322284104,1712932286482,-1944.43,0.00049863,120]
[322284105,1712932286492,-500.0,0.00049863,120]
[322284106,1712932286501,-808.31,0.00049863,120]
[322284107,1712932286511,-500.0,0.00049863,120]
[322284108,1712932286520,-513.62,0.00049863,120]
[322284109,1712932286530,-500.0,0.00049863,120]
[322284110,1712932286540,-830.2,0.00049863,120]
[322284111,1712932286550,-500.0,0.00049863,120]
[322284112,1712932286560,-609.6,0.00049863,120]
[322284113,1712932286570,-500.0,0.00049863,120]
[322284114,1712932286581,-1025.86,0.00049863,120]
[322284115,1712932286590,-500.0,0.00049863,120]
[322284116,1712932286602,-1870.81,0.00049863,120]
[322284117,1712932286612,-655.87,0.00049863,120]
[322284118,1712932286621,-887.38,0.00049863,120]
[322284119,1712932286632,-4707.9,0.00049863,120]
[322284120,1712932286643,-620.49,0.00049863,120]
[322284121,1712932286652,-450.1262621,0.00049952,120]
[322284122,1712932286662,-153.61785388,0.00049998,120]
[322284123,1712932286671,-10275.58958912,0.00049999,7]
[322284124,1712932286681,-431.7311233,0.00049999,31]
[322284125,1712932286690,-350.95660343,0.00049999,120]
[322284126,1712932286700,-500.0,0.00049999,120]
[322284127,1712932286709,-500.0,0.00049999,120]
[322284128,1712932286718,-483.60225482,0.00049999,120]
[322284129,1712932286728,-500.0,0.00049999,120]
[322284130,1712932286738,-171.50194253,0.00049999,120]
[322284131,1712932286916,-500.0,0.00049999,120]
[322284132,1712932286926,-500.0,0.00049999,120]
[322284133,1712932286935,-500.0,0.00049999,120]
[322284134,1712932286945,-500.0,0.00049999,120]
[322284135,1712932286954,-500.0,0.00049999,120]
[322284136,1712932286963,-500.0,0.00049999,120]
[322284137,1712932286973,-500.0,0.00049999,120]
[322284138,1712932286982,-500.0,0.00049999,120]
[322284139,1712932286991,-500.0,0.00049999,120]
[322284140,1712932287001,-500.0,0.00049999,120]
[322284141,1712932287010,-500.0,0.00049999,120]
[322284142,1712932287020,-500.0,0.00049999,120]
[322284143,1712932287029,-400.14178239,0.00049999,31]
[322284144,1712932287039,-100000.0,0.0005,50]
[322284145,1712932287048,-442.93305231,0.0005,28]
[322284146,1712932287057,-10000.0,0.0005,30]
[322284147,1712932287067,-29431.19041948,0.0005,30]
[322284148,1712932287076,-150.0,0.0005,27]
[322284149,1712932287085,-600.0,0.0005,120]
[322284150,1712932287094,-1500.0,0.0005,30]
[322284151,1712932287103,-10000.0,0.0005,30]
[322284152,1712932287113,-1647.1192719,0.0005,120]
[322284153,1712932287122,-301.5501083,0.0005,120]
[322284154,1712932287134,-300.0,0.0005,120]
[322284155,1712932287144,-300.0,0.0005,120]
[322284156,1712932287153,-300.0,0.0005,120]
[322284157,1712932287163,-300.0,0.0005,120]
[322284158,1712932287173,-300.0,0.0005,120]
[322284159,1712932287182,-300.0,0.0005,120]
[322284160,1712932287191,-300.0,0.0005,120]
[322284161,1712932287200,-300.0,0.0005,120]
[322284162,1712932287210,-300.0,0.0005,120]
[322284163,1712932287219,-300.0,0.0005,120]
[322284164,1712932287228,-300.0,0.0005,120]
[322284165,1712932287238,-300.0,0.0005,120]
[322284166,1712932287247,-839.849803,0.0005,2]
[322284167,1712932287257,-1039.19719472,0.0005,120]
[322284168,1712932287266,-156.04930912,0.0005,2]
[322284169,1712932287276,-4986.85606269,0.0005,2]
[322284170,1712932287285,-2500.0,0.0005,120]
[322284171,1712932287294,-2500.0,0.0005,120]
[322284172,1712932287304,-2500.0,0.0005,120]
[322284173,1712932287313,-2500.0,0.0005,120]
[322284174,1712932287322,-2500.0,0.0005,120]
[322284175,1712932287331,-2500.0,0.0005,120]
[322284176,1712932287341,-2500.0,0.0005,120]
[322284177,1712932287350,-2500.0,0.0005,120]
[322284178,1712932287360,-197.80029977,0.0005,120]
[322284179,1712932287371,-500.0,0.0005,2]
[322284180,1712932287383,-82901.0,0.0005,10]
[322284181,1712932287394,-4156.90130552,0.0005,120]
[322284182,1712932287427,-150.16,0.00029,2]
[322284183,1712932287440,-500.0,0.00046575,31]
[322284184,1712932287450,-6348.93160868,0.0005,120]
[322284185,1712932287464,-1121.92829867,0.0005,120]
[322284186,1712932287475,-49848.0310693,0.0005,120]
[322284187,1712932287488,-2656.87833997,0.0005,120]
[322284188,1712932287500,-3082.72933351,0.0005,120]
[322284189,1712932287559,-150.16,0.00029,2]
[322284190,1712932287568,-13831.37890433,0.0005,120]
[322284191,1712932287916,-263.04224416,0.00020695,2]
[322284192,1712932287926,-198.7008239,0.00020696,2]
[322284193,1712932287937,-677.79174181,0.00020696,2]
[322284194,1712932287948,-150.16,0.00029,2]
[322284195,1712932287958,-150.16,0.00029,2]
[322284196,1712932287968,-150.16,0.00029,2]
[322284197,1712932287979,-150.16,0.00029,2]
[322284198,1712932287989,-150.16,0.00029,2]
[322284199,1712932287999,-150.16,0.00029,2]
[322284200,1712932288009,-150.16,0.00029,2]
[322284201,1712932288018,-150.16,0.00029,2]
[322284202,1712932288028,-150.16,0.00029,2]
[322284203,1712932288037,-150.16,0.00029,2]
[322284204,1712932288047,-150.16,0.00029,2]
[322284205,1712932288057,-150.16,0.00029,2]
[322284206,1712932288068,-150.16,0.00029,2]
[322284207,1712932288079,-150.16,0.00029,2]
[322284208,1712932288091,-150.16,0.00029,2]
[322284209,1712932288100,-132.97664013,0.00029,2]
[322284210,1712932288116,-17.18335987,0.00029,2]
[322284211,1712932288125,-150.16,0.00029,2]
[322284212,1712932288136,-150.16,0.00029,2]
[322284213,1712932288146,-1157.34272044,0.00035557,2]
[322284214,1712932288155,-1053.0,0.00036753,2]
[322284215,1712932288164,-324.45,0.00042606,2]
[322284216,1712932288173,-245.72,0.00046849,31]
[322284217,1712932288183,-34169.8291693,0.0005,120]
[322284218,1712932288192,-150.0,0.0005,2]
[322284219,1712932288202,-3138.7601081,0.0005,30]
[322284220,1712932288212,-224.64,0.0005,120]
[322284221,1712932288222,-1888.612,0.0005,120]
[322284222,1712932288231,-500.0,0.0005,120]
[322284223,1712932288242,-1000.0,0.0005,30]
[322284224,1712932288252,-2000.0,0.0005,120]
[322284225,1712932288261,-511263.82684639,0.0005,30]
[322284226,1712932288271,-419.12817071,0.0005,30]
[322284227,1712932288282,-200.0,0.0005,90]
[322284228,1712932288291,-150.0,0.0005,120]
[322284229,1712932288304,-164.82933195,0.0005,2]
[322284230,1712932288314,-173.30636723,0.0005,2]
[322284231,1712932288323,-127029.71667229,0.0005,120]
[322284232,1712932288333,-1000.0,0.0005,120]
[322284233,1712932288343,-1144.76930171,0.0005,2]
[322284234,1712932288354,-1121.98509439,0.0005,2]
[322284235,1712932288363,-817.90614579,0.0005,2]
[322284236,1712932288373,-3889.45040682,0.0005,2]
[322284237,1712932288383,-57893.22430482,0.0005,14]
[322284238,1712932288420,-150.16,0.00029,2]
[322284239,1712932288429,-313.12334578,0.00033532,2]
[322284240,1712932288442,-1042.0,0.00039753,2]
[322284241,1712932288452,-26152.49069469,0.0005,14]
[322284242,1712932288463,-56588.69747256,0.0005,14]
[322284243,1712932288474,-200.0,0.0005,2]
[322284244,1712932288485,-1000.0,0.0005,2]
[322284245,1712932288495,-19839.73512344,0.0005,120]
[322284246,1712932288505,-38837.22169699,0.0005,120]
[322284247,1712932288518,-351.2239571,0.0005,120]
[322284248,1712932288538,-150.16,0.00029,2]
[322284249,1712932288547,-8390.34756154,0.0005,120]
[322284250,1712932289333,748.65941806,0.00018616,2]
[322284251,1712932289650,365.12124712,0.00019803,2]
[322284252,1712932290234,1056.21147422,0.00019803,2]
[322284253,1712932294475,250.89815982,0.00020476,2]
[322284255,1712932329276,300.0,0.00020439,2]
[322284256,1712932376249,33053.39200272,0.00020497,2]
[322284257,1712932379059,4790.617,0.00020431,2]
[322284258,1712932396773,154.66986529,0.00020497,2]
[322284259,1712932401890,313.68038985,0.00020496,2]
[322284260,1712932402732,1000.0,0.00019691,2]
[322284261,1712932451334,168.7257984,0.00020478,2]
[322284262,1712932456319,168.72579836,0.00020482,2]
[322284263,1712932461312,168.72579836,0.00020485,2]
[322284264,1712932466486,168.72579836,0.00020489,2]
[322284265,1712932471302,168.72579836,0.00020492,2]
[322284266,1712932476334,168.72579836,0.00020496,2]
[322284267,1712932476727,6564.70407426,0.00020496,2]
[322284268,1712932521145,157.43,0.00017798,2]
[322284269,1712932528458,155.25,0.00019739,2]
[322284270,1712932540201,705.5362,0.00020495,2]
[322284271,1712932545169,2472.5704,0.00020495,2]
[322284272,1712932557932,210.98240875,0.00020497,2]
[322284273,1712932567496,313.68038984,0.00020496,2]
[322284274,1712932570929,16371.2866,0.00020495,2]
[322284275,1712932586787,213.53,0.0001967,2]
[322284276,1712932600468,23900.0,0.0001965,2]
[322284277,1712932618214,176.73267881,0.00020497,2]
[322284278,1712932636302,3654.59944744,0.00020496,2]
[322284280,1712932656292,8308.1899,0.00020495,2]
[322284281,1712932659997,771.4772,0.00020495,2]
[322284282,1712932675332,419.82,0.00019822,2]
[322284283,1712932694917,165.49,0.00019664,2]
[322284284,1712932722837,313.68038984,0.00020496,2]
[322284285,1712932729999,304.6,0.00019646,2]
[322284286,1712932771900,4733.05974251,0.00020439,2]
[322284287,1712932783373,35344.1974,0.00020495,2]
[322284288,1712932794826,270.22,0.00019611,2]
[322284290,1712932806463,29748.05280252,0.00020467,2]
[322284291,1712932817306,5942.22150687,0.00020467,2]
[322284292,1712932839091,6063.05777968,0.00020497,2]
[322284294,1712932853132,190.44021435,0.00020498,2]
[322284295,1712932868085,313.68038984,0.00020485,2]
[322284297,1712932874080,200.0,0.00019602,2]
[322284298,1712932874418,180.28720509,0.00020497,2]
[322284299,1712932906508,171.03858627,0.00020497,2]
[322284300,1712932916373,506.1372,0.00020466,2]
[322284301,1712932919987,185.64350061,0.00020497,2]
[322284303,1712932923001,2500.0,0.00020466,2]
[322284304,1712932935754,1279.32448358,0.000205,2]
[322284305,1712932978634,164.64,0.0001972,2]
[322284306,1712932978887,164.64,0.00019849,2]
[322284307,1712932979306,164.64,0.00019977,2]
[322284308,1712932979545,164.64,0.00020106,2]
[322284309,1712932979791,164.64,0.00020234,2]
[322284310,1712932979996,164.64,0.00020362,2]
[322284311,1712932980455,164.64,0.00020491,2]
[322284312,1712933003472,313.68038984,0.00020485,2]
[322284313,1712933012032,157.43,0.00017663,2]
[322284314,1712933026493,176.73267881,0.00020497,2]
[322284316,1712933053420,190.44021434,0.00020498,2]
[322284317,1712933057485,154.5462539,0.00020497,2]
[322284318,1712933067447,1000.0,0.00020484,2]
[322284321,1712933095856,3880.0,0.00019572,2]
[322284322,1712933100326,206.07151773,0.00020501,2]
[322284323,1712933104505,1297.27092912,0.00020501,2]
[322284324,1712933105857,705.30963033,0.00020501,2]
[322284325,1712933109783,233.51339806,0.00020501,2]
[322284327,1712933111489,161.22313298,0.00020501,2]
[322284328,1712933111853,155.0,0.00020501,2]
[322284329,1712933117908,4315.63124223,0.00020501,2]
[322284330,1712933120738,505.38498314,0.00020501,2]
[322284331,1712933122196,206.42056289,0.00020501,2]
[322284332,1712933126014,210.24561399,0.00020501,2]
[322284333,1712933128921,313.68038984,0.00020495,2]
[322284334,1712933130411,155.0,0.00020501,2]
[322284335,1712933135018,155.0,0.00020501,2]
[322284336,1712933135473,201.98830693,0.00020501,2]
[322284337,1712933136394,199.96787162,0.00020501,2]
[322284338,1712933138600,194.0760332,0.00020501,2]
[322284339,1712933139119,155.0,0.00020501,2]
[322284340,1712933146536,640.69289231,0.00020501,2]
[322284341,1712933146652,1240.12890502,0.00020501,2]
[322284342,1712933147527,10549.80992276,0.00020501,2]
[322284343,1712933151981,2356.04018017,0.00020501,2]
[322284344,1712933157499,5347.99935612,0.00020495,2]
[322284345,1712933174817,206.07151773,0.00020501,2]
[322284346,1712933182297,233.51339806,0.00020501,2]
[322284347,1712933182338,155.0,0.00020501,2]
[322284348,1712933187983,236.02,0.0001977,2]
[322284349,1712933199108,210.24561399,0.00020501,2]
[322284350,1712933199251,505.38498314,0.00020501,2]
[322284351,1712933199339,164.99,0.00019613,2]
[322284352,1712933212549,194.0760332,0.00020501,2]
[322284353,1712933225042,640.69289231,0.00020501,2]
[322284354,1712933236774,26921.28352225,0.00020496,2]
[322284358,1712933244287,313.68038984,0.00020496,2]
[322284359,1712933264818,150.78373875,0.00020497,2]
[322284360,1712933271773,505.38498314,0.00020501,2]
[322284361,1712933278785,210.24561399,0.00020501,2]
[322284362,1712933283045,194.0760332,0.00020501,2]
[322284364,1712933302273,270.22,0.00019614,2]
[322284365,1712933315565,23314.33584788,0.00020501,2]
[322284367,1712933319105,2211.61171423,0.00020501,2]
[322284368,1712933344268,505.38498314,0.00020501,2]
[322284369,1712933355283,210.24561399,0.00020501,2]
[322284371,1712933359970,1740.8887,0.00020495,2]
[322284372,1712933363206,840.0,0.00019647,2]
[322284373,1712933399431,190.44021434,0.000205,2]
[322284374,1712933420590,640.69289231,0.00020501,2]
[322284375,1712933420813,505.38498314,0.00020501,2]